Cogmind - Beta 13 @@@ ROGUE MODE // 2024.04.20 @ 01:31:29 Player: ToasterKoishi Result: Destroyed by G-67 Veteran with Field Laser Performance ------------- Evolutions (7) 3500 Regions Visited (20) 4000 Robots Destroyed (211) 1055 Value Destroyed (9675) 9675 Prototype IDs (11) 220 Alien Tech Used (0) 0 Bonus (5550) 5550 TOTAL SCORE: 24000 Bonus ------- Triggered High Security 500 High Alert Combat Kills 2950 Follower Combat Kills 1116 Entered Garrisons 200 Entered DSFs 500 Network Hubs Disabled 200 Aligned with FarCom 300 Friendly Fire -216 Cogmind --------- Core Integrity 0/1300 Matter 290/300 Energy 99/100 System Corruption 1% Temperature Cool (9) Movement Core (50) Location -3/Research Parts ------- > --- POWER (2) -------- (None) > --- PROPULSION (7) --- (None) > --- UTILITY (10) ----- Improved Utility Shielding Graphene Brace Advanced Corruption Screen > --- WEAPON (2) ------- (None) > --- INVENTORY (5) ---- Advanced Matter Compressor (84) Focal Shield Advanced Corruption Screen Force Lance Peak State ------------ > --- POWER ------------ Light Antimatter Reactor Particle Reactor > --- PROPULSION ------- Antigrav System Antigrav System Antigrav System Improved Antigrav System Impulse Thruster Impulse Thruster Array > --- UTILITY ---------- Enhanced Optical Array Improved Signal Interpreter Seismic Detector Improved Reaction Control System Graphene Brace Hacking Suite Improved Hacking Suite Improved System Shield Advanced Component Analysis Suite Advanced Corruption Screen > --- WEAPON ----------- Advanced Plasma Cannon > --- INVENTORY -------- Q-thruster Advanced Matter Compressor Focal Shield Advanced Corruption Screen Advanced Corruption Screen [Rating: 122] Favorites ----------- Power Reinforced Deuterium Engine Engine Reinforced Deuterium Engine Power Core Fission Core Reactor Light Antimatter Reactor Propulsion Advanced Treads Treads Advanced Treads Leg Titanium Leg Wheel Wheel Hover Unit Antigrav System Flight Unit Impulse Thruster Utility Huge Storage Unit Device Improved Heat Sink Storage Huge Storage Unit Processor Targeting Computer Hackware Improved Hacking Suite Protection Hardened Heavy Armor Plating Weapon Improved Spread Laser Energy Gun Improved Spread Laser Energy Cannon Heavy Particle Cannon Ballistic Gun Enhanced Autogun Ballistic Cannon Flak Cannon Launcher Long-range Missile Launcher Piercing Weapon Force Lance Build | -11 -10 -10 -10 -9 -8 -7 -7 -7 -6 -6 -6 -6 -6 -6 -6 -5 -5 -5 -4 -3 ------- Run | Yrd Mat Min Exi Min Mat Fac Low Low Fac Was Fac Ext Cet Arc Hub Fac DSF Gar Fac Res Slots Evolved 14 | . . . . . 4 2 . . 2 . . . . . . 2 . . 2 2 Power 1 | . . . . . . . . . . . . . . . . . . . 1 . Propulsion 5 | . . . . . 2 . . . . . . . . . . 1 . . 1 1 Utility 8 | . . . . . 2 2 . . 2 . . . . . . 1 . . . 1 Weapon . | . . . . . . . . . . . . . . . . . . . . . Parts Attached 328 | 7 9 1 1 3 44 61 9 . 36 12 19 39 14 9 9 2 8 . 21 24 Power 22 | 1 2 . . 1 4 1 . . 1 . . 2 1 2 . 1 2 . 2 2 Engine 10 | 1 2 . . 1 3 1 . . 1 . . 1 . . . . . . . . Core 9 | . . . . . 1 . . . . . . 1 1 2 . 1 2 . 1 . Reactor 3 | . . . . . . . . . . . . . . . . . . . 1 2 Propulsion 88 | 3 2 . . 1 21 8 2 . 6 5 1 4 3 2 3 . 5 . 10 12 Treads 51 | 2 1 . . 1 18 8 2 . 6 5 1 4 2 1 . . . . . . Leg 3 | . . . . . 3 . . . . . . . . . . . . . . . Wheel 3 | 1 1 . . . . . . . . . . . 1 . . . . . . . Hover 26 | . . . . . . . . . . . . . . 1 3 . 4 . 9 9 Flight 5 | . . . . . . . . . . . . . . . . . 1 . 1 3 Utility 142 | 1 5 . 1 . 9 35 4 . 28 5 12 12 5 4 6 1 . . 7 7 Device 99 | . 2 . . . 4 28 3 . 25 4 10 9 2 3 1 1 . . 3 4 Storage 6 | 1 2 . . . 1 1 . . . . 1 . . . . . . . . . Processor 13 | . 1 . 1 . 1 3 . . 3 . . 1 1 . . . . . . 2 Hackware 7 | . . . . . . . . . . . . . . . 4 . . . 3 . Protection 17 | . . . . . 3 3 1 . . 1 1 2 2 1 1 . . . 1 1 Artifact . | . . . . . . . . . . . . . . . . . . . . . Weapon 76 | 2 . 1 . 1 10 17 3 . 1 2 6 21 5 1 . . 1 . 2 3 Energy Gun 21 | 1 . 1 . . 4 3 1 . 1 . 2 6 1 1 . . . . . . Energy Cannon 5 | . . . . . 1 1 . . . . . . . . . . . . 2 1 Ballistic Gun 20 | 1 . . . 1 3 5 2 . . . 2 5 1 . . . . . . . Ballistic Cannon 4 | . . . . . 2 2 . . . . . . . . . . . . . . Launcher 24 | . . . . . . 6 . . . 2 2 10 3 . . . 1 . . . Special Weapon . | . . . . . . . . . . . . . . . . . . . . . Impact Weapon . | . . . . . . . . . . . . . . . . . . . . . Slashing Weapon . | . . . . . . . . . . . . . . . . . . . . . Piercing Weapon 2 | . . . . . . . . . . . . . . . . . . . . 2 Special Melee Weapon . | . . . . . . . . . . . . . . . . . . . . . Unidentified Prototypes 3 | . . . 1 . . 1 . . . . . . 1 . . . . . . . Corrupted Parts 2 | . . . . . . . . . . . . . . . . . 2 . . . System Corruption 17 | . . . . . . . . . . . . . . . . . 17 . . . Parts Lost 91 | . 1 . . 3 8 2 1 . 3 1 . 5 10 4 . . 15 4 10 24 Power 10 | . . . . 1 1 . . . 1 . . . . 1 . . 2 1 . 3 Propulsion 41 | . 1 . . 2 3 . . . 2 . . 1 3 1 . . 6 1 8 13 Utility 32 | . . . . . 3 2 . . . 1 . 3 4 2 . . 6 2 2 7 Weapon 8 | . . . . . 1 . 1 . . . . 1 3 . . . 1 . . 1 Highest Loss Streak 19 | . 1 . . 3 2 1 1 . 2 1 . 2 10 2 . . 15 19 6 13 To Critical Strikes 4 | . 1 . . . . . . . . . . . 3 . . . . . . . Average Slot Usage (%) 87 | . 99 100 98 86 98 91 92 92 92 83 74 81 74 93 93 79 55 15 40 72 Engine 5 | . 14 14 14 11 4 7 7 7 6 6 6 4 . . . . . . . . Core 1 | . . . . . 4 . . . . . . 1 6 6 6 5 3 . . 1 Treads 22 | . 26 28 28 17 32 29 30 30 26 17 12 13 14 13 8 . . . . . Hover 1 | . . . . . . . . . . . . . . 1 11 23 16 6 13 19 Device 14 | . 7 . . . 13 13 15 15 18 20 14 18 19 23 17 8 5 . 3 12 Storage 6 | . 14 14 14 14 9 7 7 7 6 6 6 6 6 6 5 . . . . . Processor 9 | . 5 14 12 14 3 8 7 7 14 13 13 14 8 13 12 5 5 5 5 10 Hackware 1 | . . . . . . . . . . . . . . . 8 23 18 1 10 12 Protection 5 | . . . . . 8 6 7 7 6 5 6 7 5 6 6 11 2 . . . Energy Gun 5 | . 14 14 14 14 4 3 6 7 5 . 4 5 . 9 8 . . . . . Energy Cannon 1 | . . . . . 4 2 . . . . . . . . . . . . 1 2 Ballistic Gun 4 | . 14 14 14 14 3 4 7 7 6 . 4 5 1 2 . . . . . . Ballistic Cannon 1 | . . . . . 5 2 . . . . . . . . . . . . . . Naked Turns . | . . . . . . . . . . . . . . . . . . . . . Heaviest Build 137 | 13 28 29 29 29 112 132 126 124 126 133 137 136 129 129 113 26 26 14 31 49 Greatest Support 140 | 40 40 40 40 40 88 86 84 84 94 140 140 140 110 63 36 36 45 24 65 73 Greatest Overweight (x) 12 | . 1 . . 1 4 1 1 1 1 1 . 1 12 12 11 . . . 1 . Average Overweight (x) . | . . . . . . 1 1 1 1 . . . 9 10 6 . . . . . Largest Inventory Capacity 25 | 8 15 15 15 15 25 25 25 25 25 25 25 25 25 25 25 5 5 5 5 5 Average Capacity 22 | 6 11 15 15 15 24 25 25 25 25 25 25 25 25 25 23 5 5 5 5 5 Most Carried 25 | 4 15 15 15 14 25 25 25 25 25 25 25 25 24 25 25 5 5 3 5 5 Average Carried 21 | 2 9 15 14 13 22 24 24 25 24 24 24 24 18 20 20 4 4 3 3 4 Final Capacity 25 | 8 15 15 15 15 25 25 25 25 25 25 25 25 25 25 5 5 5 5 5 5 Final Carried 25 | 4 15 15 14 14 25 25 25 25 25 25 25 24 15 25 5 4 3 3 4 4 Class Distribution -------------------- 73% | Mutant 18% | Scavenger-Mutant 6% | Hacker-Mutant Dominant Class ---------------- Mutant | -10/Materials Mutant | -10/Mines Mutant | -10/Exiles Mutant | -9/Mines Mutant | -8/Materials Mutant | -7/Factory Mutant | -7/Lower Caves Mutant | -7/Lower Caves Mutant | -6/Factory Scavenger-Mutant | -6/Waste Mutant | -6/Factory Scavenger-Mutant | -6/Extension Scavenger-Mutant | -6/Cetus Scavenger-Mutant | -6/Archives Scavenger-Mutant | -6/Hub_04(d) Scavenger-Mutant | -5/Factory Scavenger-Mutant | -5/DSF Mutant | -5/Garrison Hacker-Mutant | -4/Factory Hacker-Mutant | -3/Research Resources | -11 -10 -10 -10 -9 -8 -7 -7 -7 -6 -6 -6 -6 -6 -6 -6 -5 -5 -5 -4 -3 ----------- Run | Yrd Mat Min Exi Min Mat Fac Low Low Fac Was Fac Ext Cet Arc Hub Fac DSF Gar Fac Res Matter Collected 6842 | 241 341 87 92 37 754 1346 116 . 496 549 533 1162 255 291 80 . 39 . 151 272 Remotely 519 | . . . . . . 124 . . . 30 23 342 . . . . . . . . Salvage Created 8673 | . 380 87 . 37 1054 1669 110 . 564 1263 646 2032 106 529 . . 35 . . 161 Parts 366 | . 30 3 . 3 51 86 5 . 34 8 22 74 5 23 . . 5 . . 17 Haulers Intercepted 3 | . . . . . 1 . . . . . 1 1 . . . . . . . . Recyclers Shooed 1 | . . . . . . . . . . . . 1 . . . . . . . . Parts Field Recycled . | . . . . . . . . . . . . . . . . . . . . . Retrieved Matter . | . . . . . . . . . . . . . . . . . . . . . Parts Self-Destructed 5 | . . . . . . . 5 . . . . . . . . . . . . . Prevented 2 | . . . . . . . 2 . . . . . . . . . . . . . Kills | -11 -10 -10 -10 -9 -8 -7 -7 -7 -6 -6 -6 -6 -6 -6 -6 -5 -5 -5 -4 -3 ------- Run | Yrd Mat Min Exi Min Mat Fac Low Low Fac Was Fac Ext Cet Arc Hub Fac DSF Gar Fac Res Combat Hostiles Destroyed 169 | . 12 2 . 3 27 42 3 . 12 6 15 36 4 4 . . 1 . . 2 Melee 2 | . . . . . . . . . . . . . . . . . . . . 2 Guns 103 | . 12 2 . 3 18 26 3 . 12 . 6 16 1 4 . . . . . . Cannons 13 | . . . . . 9 4 . . . . . . . . . . . . . . AOE 50 | . . . . . . 12 . . . 6 9 19 3 . . . 1 . . . Classes Destroyed 21 | . 2 . . . 7 5 . . 1 1 1 2 . 1 . . 1 . . . Worker 8 | . . . . . 1 3 . . . . 2 2 . . . . . . . . Builder 6 | . . . . . . 1 . . 2 . . 2 . . . . . . . 1 Tunneler 2 | . . . . . . 1 . . . . . 1 . . . . . . . . Hauler 3 | . . . . . 1 . . . . . 1 1 . . . . . . . . Recycler 6 | . . . . . 1 2 . . . . . 3 . . . . . . . . Mechanic 4 | . . . . . . 1 . . . . 1 2 . . . . . . . . Operator 9 | . . . . . . . . . . . . . . 9 . . . . . . Watcher 3 | . . . . . . . . . 1 . . 1 1 . . . . . . . Swarmer 15 | . 3 . . 3 8 1 . . . . . . . . . . . . . . Cutter 1 | . . . . . . . . . . . . . . . . . 1 . . . Saboteur 2 | . . . . . . . . . . . . 2 . . . . . . . . Grunt 70 | . 9 2 . . 11 18 . . 3 . 4 23 . . . . . . . . Brawler 7 | . . . . . 1 4 . . . . . 2 . . . . . . . . Duelist 3 | . . . . . 1 1 . . . . . 1 . . . . . . . . Protector 5 | . . . . . . 3 . . . . 1 1 . . . . . . . . Sentry 19 | . . . . . 5 5 1 . 2 . . 2 . 4 . . . . . . Specialist 1 | . . . . . . . . . . . 1 . . . . . . . . . Hunter 15 | . . . . . 1 2 1 . . . 7 4 . . . . . . . . Programmer 20 | . . . . . . 8 1 . 7 . 2 . . . . . . . . 2 Behemoth 1 | . . . . . . . . . . . . 1 . . . . . . . . Compactor 6 | . . . . . . . . . . 6 . . . . . . . . . . Cetus Guard 4 | . . . . . . . . . . . . . 4 . . . . . . . Guerrilla 1 | . . . . . . . . . . . . 1 . . . . . . . . Best Kill Streak 17 | . 3 2 . 3 9 9 1 . 5 2 12 17 5 3 . . 1 . . 2 Combat Bots Only 14 | . 3 2 . 3 9 5 1 . 3 2 8 14 3 1 . . 1 . . 1 Max Kills in Single Turn 9 | . 1 1 . 1 2 5 1 . 2 1 8 9 2 1 . . 1 . . 1 Gunslinging 1 | . . . . . 1 . . . . . . . . . . . . . . . Exploded 6 | . . . . . . 5 . . . 1 6 4 2 . . . 1 . . . Melee 1 | . . . . . . . . . . . . . . . . . . . . 1 Uniques/NPCs Destroyed . | . . . . . . . . . . . . . . . . . . . . . Combat | -11 -10 -10 -10 -9 -8 -7 -7 -7 -6 -6 -6 -6 -6 -6 -6 -5 -5 -5 -4 -3 -------- Run | Yrd Mat Min Exi Min Mat Fac Low Low Fac Was Fac Ext Cet Arc Hub Fac DSF Gar Fac Res Hostile Shots Fired 1561 | . 56 17 . 52 139 318 43 . 96 1 77 156 60 52 24 . 83 93 84 210 Missed 502 | . 13 4 . 9 27 94 14 . 31 . 18 46 23 16 12 . 36 39 34 86 Damage Taken 19430 | . 491 164 . 341 1609 3596 288 . 981 472 1272 2080 967 861 256 . 975 832 1337 2908 Core 3893 | . 104 25 . 114 102 248 29 . 109 54 48 156 159 102 71 . 225 686 361 1300 Absorbed by Shields 44 | . . . . . . . . . . . . . . . . . . 44 . . Reduced by Siege Mode 142 | . . . . . . . . . . . . 142 . . . . . . . . Redirected to Shielding 99 | . . . . . . . . . . . . . . . . . . . . 99 Regen/Repaired (Parts) 2077 | . . . . . 261 771 . . 1042 3 . . . . . . . . . . Core Remaining (%) 48 | 100 . . . 2 81 . . 60 . . . . . . 17 . . 8 68 . Volleys Fired 610 | . 42 9 . 14 96 120 9 . 33 17 36 93 17 72 . . 4 . 7 41 Largest 2 | . 2 2 . 2 2 2 2 . 2 2 2 2 2 2 . . 1 . 1 1 Hottest 162 | . 70 70 . 85 121 123 100 . 100 79 111 111 111 162 . . 39 . 98 98 Shots Fired 1102 | . 84 18 . 28 191 232 18 . 66 30 60 173 28 122 . . 4 . 7 41 Gun 833 | . 84 18 . 28 137 143 18 . 66 . 54 143 20 122 . . . . . . Cannon 173 | . . . . . 54 71 . . . . . . . . . . . . 7 41 Launcher 96 | . . . . . . 18 . . . 30 6 30 8 . . . 4 . . . Special . | . . . . . . . . . . . . . . . . . . . . . Kinetic 443 | . 42 9 . 14 97 109 9 . 33 . 21 74 10 25 . . . . . . Thermal 563 | . 42 9 . 14 94 105 9 . 33 . 33 69 10 97 . . . . 7 41 Explosive 80 | . . . . . . 9 . . . 30 6 30 5 . . . . . . . Electromagnetic 16 | . . . . . . 9 . . . . . . 3 . . . 4 . . . Robot Hit Streak 25 | . 14 5 . 4 20 19 12 . 15 22 17 25 24 15 . . 1 . 3 . Robot Miss Streak 6 | . 4 1 . 3 6 4 3 . 5 1 3 2 1 3 . . 3 . 1 . Penetration Max . | . . . . . . . . . . . . . . . . . . . . . Secondary Targets 7 | . . . . . 4 1 . . . . 1 1 . . . . . . . . Max Gunslinging Chain 1 | . . . . . 1 1 . . . . 1 1 . . . . . . . . Capacitor 12 | . . . . . . . . . . . 12 . . . . . . . . . Shots Hit Robots 789 | . 51 13 . 14 149 162 17 . 53 27 37 135 26 91 . . 1 . 2 11 Core Hits 647 | . 26 5 . 5 77 187 18 . 66 14 37 113 27 66 . . 1 . . 5 Critical Kills . | . . . . . . . . . . . . . . . . . . . . . Critical Parts Destroyed 1 | . . . . . . 1 . . . . . . . . . . . . . . Critical Strikes 15 | . 1 . . . 3 4 . . . . 2 3 . . . . . . . 2 Burn 9 | . 1 . . . 3 . . . . . 2 3 . . . . . . . . Destroy 1 | . . . . . . 1 . . . . . . . . . . . . . . Blast 3 | . . . . . . 3 . . . . . . . . . . . . . . Impale 2 | . . . . . . . . . . . . . . . . . . . . 2 Melee Attacks 14 | . . . . . . . . . . . . . . . . . . . . 14 Impact . | . . . . . . . . . . . . . . . . . . . . . Slashing . | . . . . . . . . . . . . . . . . . . . . . Piercing 14 | . . . . . . . . . . . . . . . . . . . . 14 Sneak Attacks 1 | . . . . . . . . . . . . . . . . . . . . 1 Combat Hostiles . | . . . . . . . . . . . . . . . . . . . . . Follow-up Attacks . | . . . . . . . . . . . . . . . . . . . . . Damage Inflicted 27350 | . 519 123 . 148 2276 5819 384 . 1255 3466 2371 6947 1164 2163 12 . 91 . 85 527 Guns 12225 | . 519 123 . 148 1254 2397 384 . 1255 . 850 2676 456 2163 . . . . . . Cannons 2011 | . . . . . 1019 907 . . . . . . . . . . . . 85 . Explosions 12551 | . . . . . . 2512 . . . 3466 1503 4271 708 . . . 91 . . . Melee 527 | . . . . . . . . . . . . . . . . . . . . 527 Ramming 36 | . . . . . 3 3 . . . . 18 . . . 12 . . . . . Kinetic 5592 | . 204 73 . 59 977 1304 137 . 422 . 290 1273 226 627 . . . . . . Thermal 9544 | . 315 50 . 89 1296 2839 247 . 833 . 560 1464 230 1536 . . . . 85 . Explosive 10808 | . . . . . . 1100 . . . 3466 1503 4210 529 . . . . . . . Electromagnetic 843 | . . . . . . 573 . . . . . . 179 . . . 91 . . . Impact . | . . . . . . . . . . . . . . . . . . . . . Slashing . | . . . . . . . . . . . . . . . . . . . . . Piercing 527 | . . . . . . . . . . . . . . . . . . . . 527 Highest Corruption 18 | . . . . . 5 5 . . 3 2 . . . . . . 18 18 2 1 Average Corruption 3 | . . . . . 5 2 . . 1 1 . . . . . . 2 18 1 1 Corruption Purged 20 | . . . . . . 14 . . 4 2 . . . . . . . . . . Corruption Blocked 10 | . . . . . . . . . . . . . . . . . . . . 10 Effects 114 | . . . . . 42 45 . . 9 3 . . . . . . 1 7 1 6 Message Errors 30 | . . . . . 11 14 . . 4 . . . . . . . . 1 . . Matter Fused 29 | . . . . . 12 12 . . 2 . . . . . . . . . . 3 Heat Flow Errors 16 | . . . . . 5 7 . . 1 . . . . . . . 1 2 . . Energy Discharges 11 | . . . . . 4 5 . . . 1 . . . . . . . . . 1 Parts Rejected 4 | . . . . . 2 1 . . . . . . . . . . . 1 . . Data Loss (minor) 13 | . . . . . 5 3 . . 1 1 . . . . . . . 1 1 1 Data Loss (major) 4 | . . . . . . 1 . . 1 1 . . . . . . . . . 1 Misfires 1 | . . . . . 1 . . . . . . . . . . . . . . . Alerts 3 | . . . . . 1 2 . . . . . . . . . . . . . . Misdirections 2 | . . . . . . . . . . . . . . . . . . 2 . . Weapon Failures 1 | . . . . . 1 . . . . . . . . . . . . . . . Overload Shots . | . . . . . . . . . . . . . . . . . . . . . Overflow Damage 318 | . . . . . . 117 . . . 12 30 58 . . . . 17 . . 84 Projectiles 10 | . . . . . . 10 . . . . . . . . . . . . . . Explosions 224 | . . . . . . 107 . . . 12 30 58 . . . . 17 . . . Melee 84 | . . . . . . . . . . . . . . . . . . . . 84 Knockbacks 15 | . . . . . 7 7 . . . . 1 . . . . . . . . . Impact 1 | . . . . . . . . . . . 1 . . . . . . . . . Kinetic 13 | . . . . . 6 7 . . . . . . . . . . . . . . Secondary 1 | . . . . . 1 . . . . . . . . . . . . . . . Self-Inflicted Damage 1279 | . . . . . . 618 . . . 420 . 168 . . 6 . 67 . . . Shots 32 | . . . . . . 14 . . . 10 . 5 . . . . 3 . . . Rammed 5 | . . . . . 2 1 . . . . 1 . . . 1 . . . . . Targets Rammed 5 | . . . . . 2 1 . . . . 1 . . . 1 . . . . . Kicked . | . . . . . . . . . . . . . . . . . . . . . Crushed . | . . . . . . . . . . . . . . . . . . . . . Highest Temperature 424 | . 140 244 . 164 253 326 32 . 111 20 414 127 4 20 14 . 249 261 123 424 Average Temperature 78 | . 26 138 . 85 49 94 15 . 30 7 99 34 2 10 8 . 134 123 37 111 Received Heat Transfer 3332 | . 243 114 . . 603 705 36 . 222 . 159 533 18 153 117 . 240 63 9 117 Effects 13 | . . . . . 3 5 . . . . 1 . . . . . . . . 4 Energy Bleed 1 | . . . . . . . . . . . . . . . . . . . . 1 Interference 12 | . . . . . 3 5 . . . . 1 . . . . . . . . 3 Siege Activations 11 | . . . . . . . . . . . . 11 . . . . . . . . Total Turns 173 | . . . . . . . . . . . . 173 . . . . . . . . Longest Duration 60 | . . . . . . . . . . . . 60 . . . . . . . . Robots Corrupted . | . . . . . . . . . . . . . . . . . . . . . Combat Hostiles . | . . . . . . . . . . . . . . . . . . . . . Parts Fried . | . . . . . . . . . . . . . . . . . . . . . Impact Corruptions . | . . . . . . . . . . . . . . . . . . . . . Robots Melted 1 | . . . . . . . . . . . . 1 . . . . . . . . Combat Hostiles 1 | . . . . . . . . . . . . 1 . . . . . . . . Parts Melted 25 | . 3 . . 1 5 3 . . 1 . 1 6 . 5 . . . . . . Heat Transferred 13979 | . 999 148 . 222 3108 2486 195 . 645 . 999 2228 370 2479 . . . . 100 . Parts Sabotaged . | . . . . . . . . . . . . . . . . . . . . . Parts Stolen . | . . . . . . . . . . . . . . . . . . . . . Parts Stripped . | . . . . . . . . . . . . . . . . . . . . . Power Chain Reactions 3 | . . . . . . 2 . . . . . . . . . . 1 . . . Alert | -11 -10 -10 -10 -9 -8 -7 -7 -7 -6 -6 -6 -6 -6 -6 -6 -5 -5 -5 -4 -3 ------- Run | Yrd Mat Min Exi Min Mat Fac Low Low Fac Was Fac Ext Cet Arc Hub Fac DSF Gar Fac Res Peak Influence 1651 | . 190 81 . 75 275 1604 . . 394 96 1385 1651 892 421 90 74 51 120 132 207 Initial 892 | . . 31 . . 29 56 . . 314 27 . 678 892 346 20 44 51 11 63 7 Average 336 | . 86 73 . 37 87 440 . . 139 35 762 1169 861 226 30 50 23 47 61 28 Maximum Alert Level 5 | . . . . . 1 5 . . 1 . 4 5 3 2 . . . . . 1 Low Security (%) 63 | 100 100 100 . 100 99 51 . . 73 100 8 . . 46 100 100 100 100 100 99 Level 1 12 | . . . . . . 11 . . 26 . 29 . . 47 . . . . . . Level 2 4 | . . . . . . 11 . . . . 11 8 . 6 . . . . . . Level 3 6 | . . . . . . 4 . . . . 11 31 100 . . . . . . . Level 4 12 | . . . . . . 20 . . . . 39 51 . . . . . . . . Level 5 . | . . . . . . . . . . . . 8 . . . . . . . . High Security . | . . . . . . 1 . . . . . . . . . . . . . . Max Security . | . . . . . . . . . . . . . . . . . . . . . Squads Dispatched 61 | . 4 . . . 5 18 . . 7 . 12 8 . . 2 . 1 . 2 2 Investigation 13 | . 2 . . . 5 1 . . 1 . 1 2 . . 1 . . . . . Extermination 20 | . . . . . . 9 . . 5 . 2 . . . . . . . 2 2 Reinforcement 13 | . 2 . . . . 4 . . 1 . 3 1 . . 1 . 1 . . . Assault 12 | . . . . . . 4 . . . . 3 5 . . . . . . . . Garrison 3 | . . . . . . . . . . . 3 . . . . . . . . . Intercept . | . . . . . . . . . . . . . . . . . . . . . Searches Triggered . | . . . . . . . . . . . . . . . . . . . . . Construction Impeded 2 | . . . . . . . . . . . 1 1 . . . . . . . . Haulers Reinforced 1 | . . . . . . 1 . . . . . . . . . . . . . . Active Scanning Responses . | . . . . . . . . . . . . . . . . . . . . . Cargo Convoy Interrupts 1 | . . . . . . . . . . . 1 . . . . . . . . . Stealth | -11 -10 -10 -10 -9 -8 -7 -7 -7 -6 -6 -6 -6 -6 -6 -6 -5 -5 -5 -4 -3 --------- Run | Yrd Mat Min Exi Min Mat Fac Low Low Fac Was Fac Ext Cet Arc Hub Fac DSF Gar Fac Res Distress Signals 17 | . 2 . . . 4 2 . . . . 2 2 1 . . . . . 1 3 Communications Jammed . | . . . . . . . . . . . . . . . . . . . . . Distress Signals . | . . . . . . . . . . . . . . . . . . . . . Times Spotted 389 | . 25 2 . 3 53 64 3 . 19 5 25 54 4 25 7 1 4 10 33 52 Peak Tracking Total 27 | . 5 2 . 3 9 6 1 . 4 2 11 8 5 1 7 2 2 6 12 27 Tactical Retreats 22 | . 2 . . . 1 6 . . . . 1 . . . . 1 1 2 2 6 Traps | -11 -10 -10 -10 -9 -8 -7 -7 -7 -6 -6 -6 -6 -6 -6 -6 -5 -5 -5 -4 -3 ------- Run | Yrd Mat Min Exi Min Mat Fac Low Low Fac Was Fac Ext Cet Arc Hub Fac DSF Gar Fac Res Traps Triggered 17 | . 1 . . . 4 1 . . 4 . 2 1 . . . . . 1 2 1 Indirectly . | . . . . . . . . . . . . . . . . . . . . . Trap Hack Attempts . | . . . . . . . . . . . . . . . . . . . . . Triggered . | . . . . . . . . . . . . . . . . . . . . . Disarmed 7 | . . . . . . . . . . . . . . . . . . . 7 . Reprogrammed . | . . . . . . . . . . . . . . . . . . . . . Reused . | . . . . . . . . . . . . . . . . . . . . . Traps Extracted . | . . . . . . . . . . . . . . . . . . . . . Installed . | . . . . . . . . . . . . . . . . . . . . . Triggered 1 | . . . . . . . 1 . . . . . . . . . . . . . Machines | -11 -10 -10 -10 -9 -8 -7 -7 -7 -6 -6 -6 -6 -6 -6 -6 -5 -5 -5 -4 -3 ---------- Run | Yrd Mat Min Exi Min Mat Fac Low Low Fac Was Fac Ext Cet Arc Hub Fac DSF Gar Fac Res Machines Disabled 66 | . . . . 1 1 29 . . . . 24 7 . 3 . . . . 1 . Max in Single Turn 17 | . . . . 1 1 17 . . . . 2 4 . 1 . . . . 1 . Garrison Access 2 | . . . . . . . . . . . . . . . . 1 . . . 1 Network Hub 1 | . . . . . . . . . . . . . . . 1 . . . . . Energy Cycler 2 | . . . . . . . . . . . . 2 . . . . . . . . Machines Repaired . | . . . . . . . . . . . . . . . . . . . . . Machines Dismantled . | . . . . . . . . . . . . . . . . . . . . . Machines Sabotaged 1 | . . . . . . . . . . . . . . . 1 . . . . . Overloaded Fab Kills . | . . . . . . . . . . . . . . . . . . . . . Hacking | -11 -10 -10 -10 -9 -8 -7 -7 -7 -6 -6 -6 -6 -6 -6 -6 -5 -5 -5 -4 -3 --------- Run | Yrd Mat Min Exi Min Mat Fac Low Low Fac Was Fac Ext Cet Arc Hub Fac DSF Gar Fac Res Machines Accessed 73 | . 3 . 1 . 12 11 2 . 7 . 10 7 3 . 1 4 . 1 8 3 Terminals 47 | . 3 . . . 8 6 . . 4 . 4 7 3 . 1 2 . 1 7 1 Fabricators . | . . . . . . . . . . . . . . . . . . . . . Repair Stations 7 | . . . . . 2 3 . . 1 . 1 . . . . . . . . . Recycling Units 5 | . . . . . 1 1 . . . . 2 . . . . 1 . . . . Scanalyzers 6 | . . . . . 1 . . . 2 . 2 . . . . . . . 1 . Garrison Access 5 | . . . . . . 1 . . . . 1 . . . . 1 . . . 2 Total Hacks 182 | . 5 . 1 . 32 20 2 . 17 . 20 18 7 . 2 5 . 2 39 12 Successful 71 | . . . 1 . 15 9 2 . 7 . 8 4 2 . 2 3 . . 16 2 Failed 111 | . 5 . . . 17 11 . . 10 . 12 14 5 . . 2 . 2 23 10 Catastrophic 36 | . 2 . . . 4 7 . . 5 . 3 5 1 . . . . 1 6 2 Database Lockouts . | . . . . . . . . . . . . . . . . . . . . . Manual 47 | . 4 . 1 . 12 4 . . . . 9 4 . . 2 1 . . 10 . Terminals 121 | . 5 . . . 21 10 . . 7 . 8 18 7 . 2 3 . 2 34 4 Fabricators . | . . . . . . . . . . . . . . . . . . . . . Repair Stations 18 | . . . . . 5 7 . . 4 . 2 . . . . . . . . . Recycling Units 9 | . . . . . 1 2 . . . . 5 . . . . 1 . . . . Scanalyzers 20 | . . . . . 5 . . . 6 . 4 . . . . . . . 5 . Garrison Access 11 | . . . . . . 1 . . . . 1 . . . . 1 . . . 8 Terminal Hacks 38 | . . . 1 . 5 3 2 . 2 . 3 4 2 . 1 2 . . 12 1 Record 4 | . . . 1 . . 1 . . . . . . 1 . . . . . 1 . Part Schematic 1 | . . . . . . 1 . . . . . . . . . . . . . . Prototype ID Bank 2 | . . . . . 1 . . . . . . . . . . . . . 1 . Open Door 5 | . . . . . . . 2 . . . 1 1 1 . . . . . . . Open DSF 3 | . . . . . . . . . 1 . 1 . . . . 1 . . . . Level Access Points 2 | . . . . . . . . . . . . . . . 1 1 . . . . Branch Access Points 3 | . . . . . . . . . . . 1 1 . . . . . . 1 . Terminal Index 1 | . . . . . . . . . . . . . . . . . . . 1 . Scanalyzer Index 1 | . . . . . 1 . . . . . . . . . . . . . . . Alert Level 4 | . . . . . . . . . 1 . . 2 . . . . . . 1 . Unreport Threat 2 | . . . . . 2 . . . . . . . . . . . . . . . Locate Traps 3 | . . . . . . . . . . . . . . . . . . . 2 1 Disarm Traps 2 | . . . . . . . . . . . . . . . . . . . 2 . Security Status 1 | . . . . . . . . . . . . . . . . . . . 1 . Registered Components 1 | . . . . . 1 . . . . . . . . . . . . . . . Registered Prototypes 1 | . . . . . . . . . . . . . . . . . . . 1 . Zone Layout 2 | . . . . . . 1 . . . . . . . . . . . . 1 . Fabricator Hacks . | . . . . . . . . . . . . . . . . . . . . . Repair Station Hacks 13 | . . . . . 4 4 . . 4 . 1 . . . . . . . . . Scan Component 7 | . . . . . 2 2 . . 2 . 1 . . . . . . . . . Repair 6 | . . . . . 2 2 . . 2 . . . . . . . . . . . Recycling Unit Hacks 1 | . . . . . 1 . . . . . . . . . . . . . . . Process 1 | . . . . . 1 . . . . . . . . . . . . . . . Scanalyzer 12 | . . . . . 5 . . . 1 . 2 . . . . . . . 4 . Insert Component 7 | . . . . . 3 . . . 1 . 2 . . . . . . . 1 . Analyze 5 | . . . . . 2 . . . . . . . . . . . . . 3 . Garrison Access Hacks 2 | . . . . . . . . . . . . . . . . 1 . . . 1 Seal Access 2 | . . . . . . . . . . . . . . . . 1 . . . 1 Unauthorized Hacks 5 | . . . . . . 2 . . . . 2 . . . 1 . . . . . Terminals 1 | . . . . . . . . . . . . . . . 1 . . . . . Sabotage 1 | . . . . . . . . . . . . . . . 1 . . . . . Fabricators . | . . . . . . . . . . . . . . . . . . . . . Repair Stations . | . . . . . . . . . . . . . . . . . . . . . Recycling Units 4 | . . . . . . 2 . . . . 2 . . . . . . . . . Reject 2 | . . . . . . 1 . . . . 1 . . . . . . . . . Mask 2 | . . . . . . 1 . . . . 1 . . . . . . . . . Scanalyzers . | . . . . . . . . . . . . . . . . . . . . . Garrison Access . | . . . . . . . . . . . . . . . . . . . . . Data Cores Recovered . | . . . . . . . . . . . . . . . . . . . . . Used . | . . . . . . . . . . . . . . . . . . . . . Hacking Detections 56 | . 3 . . . 10 9 . . 7 . 7 6 2 . . 2 . 1 7 2 Full Trace Events 8 | . 1 . . . 3 1 . . 1 . 1 1 . . . . . . . . Feedback Events . | . . . . . . . . . . . . . . . . . . . . . Feedback Blocked . | . . . . . . . . . . . . . . . . . . . . . Robot Schematics Acquired . | . . . . . . . . . . . . . . . . . . . . . Robots Built . | . . . . . . . . . . . . . . . . . . . . . Authchips . | . . . . . . . . . . . . . . . . . . . . . Time . | . . . . . . . . . . . . . . . . . . . . . Total Robot Build Rating . | . . . . . . . . . . . . . . . . . . . . . Part Schematics Acquired 3 | . . . . . 1 1 . . . . . . . . . . . . 1 . Parts Built . | . . . . . . . . . . . . . . . . . . . . . Authchips . | . . . . . . . . . . . . . . . . . . . . . Time . | . . . . . . . . . . . . . . . . . . . . . Total Part Build Rating . | . . . . . . . . . . . . . . . . . . . . . Parts Repaired 6 | . . . . . 2 2 . . 2 . . . . . . . . . . . Time 246 | . . . . . 76 82 . . 88 . . . . . . . . . . . Parts Recycled . | . . . . . . . . . . . . . . . . . . . . . Recycled Matter 34 | . . . . . 34 . . . . . . . . . . . . . . . Retrieved Matter . | . . . . . . . . . . . . . . . . . . . . . Retrieved Components . | . . . . . . . . . . . . . . . . . . . . . Parts Scanalyzed 5 | . . . . . 2 . . . 1 . 1 . . . . . . . 1 . Part Schematics Acquired 2 | . . . . . 1 . . . . . . . . . . . . . 1 . Parts Damaged 1 | . . . . . . . . . 1 . . . . . . . . . . . Bothacking | -11 -10 -10 -10 -9 -8 -7 -7 -7 -6 -6 -6 -6 -6 -6 -6 -5 -5 -5 -4 -3 ------------ Run | Yrd Mat Min Exi Min Mat Fac Low Low Fac Was Fac Ext Cet Arc Hub Fac DSF Gar Fac Res Used RIF Installer . | . . . . . . . . . . . . . . . . . . . . . Robots Hacked . | . . . . . . . . . . . . . . . . . . . . . Non-combat . | . . . . . . . . . . . . . . . . . . . . . Combat . | . . . . . . . . . . . . . . . . . . . . . Robot Hacks Applied . | . . . . . . . . . . . . . . . . . . . . . Relay Couplers Released . | . . . . . . . . . . . . . . . . . . . . . Fabnet Peak Effective % . | . . . . . . . . . . . . . . . . . . . . . Robots Rewired 9 | . . . . . . . . . . . . 9 . . . . . . . . Allies Hacked 2 | . . . . . . . . . . . 2 . . . . . . . . . Hacks Repelled . | . . . . . . . . . . . . . . . . . . . . . Allies | -11 -10 -10 -10 -9 -8 -7 -7 -7 -6 -6 -6 -6 -6 -6 -6 -5 -5 -5 -4 -3 -------- Run | Yrd Mat Min Exi Min Mat Fac Low Low Fac Was Fac Ext Cet Arc Hub Fac DSF Gar Fac Res Total Allies 33 | . . . . . . . . . . 18 . 15 . . . . . . . . Largest Group 18 | . . . . . . . . . . 18 18 8 2 . . . . . . . Highest-Rated Group 638 | . . . . . . . . . . 638 638 372 59 . . . . . . . Highest-Rated Ally 159 | . . . . . . . . . . 50 50 159 39 . . . . . . . Total Orders . | . . . . . . . . . . . . . . . . . . . . . Ally Attacks 184 | . . . . . . . . . . . 78 104 2 . . . . . . . Total Damage 6311 | . . . . . . . . . . . 4370 1881 60 . . . . . . . Kills 44 | . . . . . . . . . . . 28 16 . . . . . . . . Allies Corrupted . | . . . . . . . . . . . . . . . . . . . . . Allies Melted 1 | . . . . . . . . . . . . 1 . . . . . . . . Intel | -11 -10 -10 -10 -9 -8 -7 -7 -7 -6 -6 -6 -6 -6 -6 -6 -5 -5 -5 -4 -3 ------- Run | Yrd Mat Min Exi Min Mat Fac Low Low Fac Was Fac Ext Cet Arc Hub Fac DSF Gar Fac Res Robot Analysis Total . | . . . . . . . . . . . . . . . . . . . . . Derelict Logs Recovered 1 | . . . . . . . 1 . . . . . . . . . . . . . Drone Launches . | . . . . . . . . . . . . . . . . . . . . . Drone Recoveries . | . . . . . . . . . . . . . . . . . . . . . Exploration | -11 -10 -10 -10 -9 -8 -7 -7 -7 -6 -6 -6 -6 -6 -6 -6 -5 -5 -5 -4 -3 ------------- Run | Yrd Mat Min Exi Min Mat Fac Low Low Fac Was Fac Ext Cet Arc Hub Fac DSF Gar Fac Res Turns Passed 23657 | 81 1053 115 488 192 2931 5797 1548 124 2979 768 1467 1708 369 1490 295 114 60 118 861 1099 Spaces Moved 12118 | 48 548 56 305 75 1028 2043 627 52 1058 357 772 743 139 389 148 233 59 211 1681 1546 Core 834 | 5 . . . . . . . . . . . . . . . . . 187 565 77 Treads 7532 | 39 487 56 305 75 885 2043 627 52 1058 357 772 743 14 19 . . . . . . Legs 143 | . . . . . 143 . . . . . . . . . . . . . . . Wheels 640 | 4 61 . . . . . . . . . . . 125 370 80 . . . . . Hover 2965 | . . . . . . . . . . . . . . . 68 233 59 24 1114 1467 Flight 4 | . . . . . . . . . . . . . . . . . . . 2 2 Fastest Speed 36 | 50 95 160 160 160 130 225 237 237 235 160 160 160 160 230 48 48 48 50 36 40 Average Speed 158 | 141 152 160 160 200 219 231 237 237 238 177 160 160 223 244 181 48 56 51 46 48 Slowest Speed 465 | 160 160 160 160 240 465 237 237 237 241 246 160 240 260 260 245 48 66 66 120 66 Overloaded Moves . | . . . . . . . . . . . . . . . . . . . . . Propulsion Burnouts . | . . . . . . . . . . . . . . . . . . . . . Robots Hopped . | . . . . . . . . . . . . . . . . . . . . . Cave-ins Triggered . | . . . . . . . . . . . . . . . . . . . . . Time Travels 1 | . . . 1 . . . . . . . . . . . . . . . . . Exploration Rate (%) 47 | 5 94 20 75 13 65 47 77 16 26 96 23 84 74 89 20 5 51 41 35 34 Regions Visited 20 Branch Regions 9 Pre-discovered Areas 2 | . . . 1 . . . 1 . . . . . . . . . . . . . Known Exits Taken 8 | . . . . . . 1 . . . . 1 1 1 1 1 1 . . 1 . Unknown Exits Taken 8 | 1 1 1 1 1 1 . 1 1 . . . . . . . . . . . . Scrap Searched 4 | . . . . . . . 4 . . . . . . . . . . . . . Spaces Dug 41 | . . . . . 1 8 . . . . . . . . . . . . 3 29 Terrain Destroyed 740 | . . . . . 4 133 . . . 132 53 325 52 . . . . . 4 37 Melee 1 | . . . . . . . . . . . . . . . . . . . . 1 Projectile 53 | . . . . . 4 8 . . . . . 1 . . . . . . 4 36 AOE 686 | . . . . . . 125 . . . 132 53 324 52 . . . . . . . Terrain Rammed . | . . . . . . . . . . . . . . . . . . . . . Walls Destroyed . | . . . . . . . . . . . . . . . . . . . . . Machines Disabled . | . . . . . . . . . . . . . . . . . . . . . Actions | -11 -10 -10 -10 -9 -8 -7 -7 -7 -6 -6 -6 -6 -6 -6 -6 -5 -5 -5 -4 -3 --------- Run | Yrd Mat Min Exi Min Mat Fac Low Low Fac Was Fac Ext Cet Arc Hub Fac DSF Gar Fac Res Total 15679 | 58 690 66 306 92 1524 2902 673 54 1460 476 967 1117 177 844 187 235 78 218 1742 1813 Wait 2162 | . 71 . . . 292 598 20 3 315 57 117 142 2 346 . . 5 . 20 174 Move 12097 | 47 547 55 304 74 1027 2042 626 51 1058 356 771 742 138 388 147 232 58 209 1679 1546 Hop . | . . . . . . . . . . . . . . . . . . . . . Pick Up 170 | 3 13 . . 1 35 32 5 . 9 13 9 7 2 20 3 . 3 . 10 5 Fast Attach 81 | 7 3 . . . 13 8 . . 5 3 2 4 1 2 1 . 4 . 10 18 Attach 93 | . 1 . 1 2 12 12 2 . 5 2 6 6 10 5 8 1 4 . 11 5 Detach 39 | 1 2 . 1 . 2 6 . . 3 2 3 1 2 1 10 . . . 3 2 Swap 154 | . 5 1 . 1 19 41 7 . 26 7 11 29 3 2 . 1 . . . 1 Drop 157 | . 6 1 . . 26 42 4 . 6 19 11 6 2 8 17 1 . . 1 7 Fire 610 | . 42 9 . 14 96 120 9 . 33 17 36 93 17 72 . . 4 . 7 41 Melee 14 | . . . . . . . . . . . . . . . . . . . . 14 Ram 2 | . . . . . . . . . . . . . . . 1 . . 1 . . Kick . | . . . . . . . . . . . . . . . . . . . . . Crush 4 | . . . . . 2 1 . . . . 1 . . . . . . . . . Escape Stasis 9 | . . . . . . . . . . . . . . . . . . 8 1 . Rewire 87 | . . . . . . . . . . . . 87 . . . . . . . . Trap . | . . . . . . . . . . . . . . . . . . . . . Miscellaneous . | . . . . . . . . . . . . . . . . . . . . . Route ------- -11/Scrapyard -10/Materials (discovered 5 exits: [*Mat x3] / [*Min x2]) -10/Mines -10/Exiles -9/Mines -8/Materials -7/Factory (discovered 5 exits: *Fac x3 / *Low x2) -7/Lower Caves -7/Lower Caves -6/Factory (discovered 2 exits: *Low / *Ext) -6/Waste -6/Factory (discovered 5 exits: *Fac / *Low x2 / *Ext x2) -6/Extension (discovered 3 exits: *Fac x2 / *Cet) -6/Cetus -6/Archives (discovered 3 exits: *Fac / *Hub x2) -6/Hub_04(d) (discovered 4 exits: *Fac x4) -5/Factory (discovered 5 exits: Fac x4 / DSF) -5/DSF -5/Garrison (discovered 2 exits: *Fac x2) -4/Factory (discovered 4 exits: *Res / Upp x2 / Arm) -3/Research History --------- Turn | Location | Event 13 | -11/Scrapyard | Discovered new exit (range 15) 82 | -11/Scrapyard | Entered Materials 314 | -10/Materials | Build established: Mutant 507 | -10/Materials | Discovered new exit (range 16) 838 | -10/Materials | Discovered new exit (range 15) 892 | -10/Materials | Discovered new exit (range 16) 1022 | -10/Materials | Discovered new exit (range 5) 1086 | -10/Materials | Discovered new exit (range 7) 1135 | -10/Materials | Entered Mines 1149 | -10/Mines | Core integrity fell below 50% 1242 | -10/Mines | Deemed a non-threat by the Exiles lab entrance 1244 | -10/Mines | Discovered new exit (range 5) 1250 | -10/Mines | Entered Exiles 1289 | -10/Exiles | Met 8R-AWN 1316 | -10/Exiles | Met EX-HEX 1362 | -10/Exiles | Met EX-BIN 1382 | -10/Exiles | Aligned with FarCom system 1383 | -10/Exiles | Given EX-Vault access code 1420 | -10/Exiles | Opened EX-Vault 1429 | -10/Exiles | Found Prototype Device 1429 | -10/Exiles | Identified Chronowheel 1429 | -10/Exiles | Activated Chronowheel 1429 | -10/Exiles | Spacetime reconverged on an earlier point 1462 | -10/Exiles | Warned to stay clear of 0b10 Research branches 1511 | -10/Exiles | Met EX-DEC 1521 | -10/Exiles | Learned location of Zion (-7) 1584 | -10/Exiles | Visited The Gauntlet 1726 | -10/Exiles | Discovered new exit (range 10) 1738 | -10/Exiles | Entered Mines 1819 | -9/Mines | Core integrity fell below 20% 1849 | -9/Mines | Lost 3 parts (1p2n) 1921 | -9/Mines | Discovered new exit (range 4) 1930 | -9/Mines | Entered Materials 1930 | -8/Materials | Evolved 4 slots: Propulsion x2, Utility x2 2233 | -8/Materials | Destroyed 9 combat bots 2576 | -8/Materials | Repaired Adv. Treads 3971 | -8/Materials | Discovered new exit (range 15) 4073 | -8/Materials | Repaired Adv. Treads 4861 | -8/Materials | Entered Factory 4861 | -7/Factory | Evolved 2 slots: Utility x2 5159 | -7/Factory | Discovered new exit (range 15) 5214 | -7/Factory | Identified exit to Lower Caves 7476 | -7/Factory | Discovered new exit (range 15) 8481 | -7/Factory | Discovered new exit (range 5) 8890 | -7/Factory | First assault squad dispatched 9596 | -7/Factory | Discovered new exit (range 11) 9846 | -7/Factory | Repaired Arm. Treads 9974 | -7/Factory | Discovered exit to Lower Caves (range 7) 10573 | -7/Factory | Repaired Hrd. Heavy Armor Plating 10594 | -7/Factory | High security lockdown imminent 10658 | -7/Factory | Entered Lower Caves 10660 | -7/Lower Caves | Attracted the attention of an 0b10 checkpoint 11569 | -7/Lower Caves | Learned location of Extension (-6) 12171 | -7/Lower Caves | Discovered new exit (range 15) 12206 | -7/Lower Caves | Entered another Lower Caves area 12287 | -7/Lower Caves | Discovered new exit (range 12) 12302 | -7/Lower Caves | Encountered a Warlord checkpoint 12330 | -7/Lower Caves | Entered Factory 12330 | -6/Factory | Evolved 2 slots: Utility x2 12562 | -6/Factory | Identified exit to DSF 12569 | -6/Factory | Discovered new exit (range 16) 13372 | -6/Factory | Repaired Hrd. Heavy Armor Plating 13417 | -6/Factory | Repaired Hrd. Heavy Armor Plating 14191 | -6/Factory | Discovered new exit (range 6) 15309 | -6/Factory | Sucked down chute 15309 | -6/Factory | Entered Waste 15329 | -6/Waste | Spotted C-40 Crusher 15336 | -6/Waste | Spotted C-40 Crusher 15342 | -6/Waste | Destroyed C-40 Crusher 15348 | -6/Waste | Destroyed C-40 Crusher 15383 | -6/Waste | Spotted C-40 Crusher 15387 | -6/Waste | Destroyed C-40 Crusher 15398 | -6/Waste | Spotted C-40 Crusher 15405 | -6/Waste | Spotted C-40 Crusher 15437 | -6/Waste | Spotted C-40 Crusher 15438 | -6/Waste | Destroyed C-40 Crusher 15589 | -6/Waste | Destroyed C-40 Crusher 15599 | -6/Waste | Destroyed C-40 Crusher 15685 | -6/Waste | Discovered new exit (range 13) 15762 | -6/Waste | Found Quantum Capacitor 15831 | -6/Waste | Build established: Scavenger-Mutant 15862 | -6/Waste | Warlord forces began an assault 16077 | -6/Waste | Entered Factory 16077 | -6/Factory | Accompanied by 18 allies 16081 | -6/Factory | Identified exit to DSF 16136 | -6/Factory | Garrison activated, responded to threat 16237 | -6/Factory | Discovered new exit (range 15) 16369 | -6/Factory | Discovered new exit (range 7) 16575 | -6/Factory | Build established: Mutant 16718 | -6/Factory | Lost 11 allies 16777 | -6/Factory | First assault squad dispatched 16867 | -6/Factory | Cargo convoy interrupted 16896 | -6/Factory | Destroyed 8 combat bots 17046 | -6/Factory | Identified exit to Lower Caves 17046 | -6/Factory | Identified exit to Extension 17544 | -6/Factory | Entered Extension 17695 | -6/Extension | Rescued a captive Derelict 17894 | -6/Extension | First assault squad dispatched 18045 | -6/Extension | Energy Cycler disabled 18045 | -6/Extension | Rescued a captive Derelict 18045 | -6/Extension | Rescued a captive Derelict 18046 | -6/Extension | Rescued a captive Derelict 18049 | -6/Extension | Rescued a captive Derelict 18049 | -6/Extension | Rescued a captive Derelict 18049 | -6/Extension | Rescued a captive Derelict 18051 | -6/Extension | Rescued a captive Derelict 18053 | -6/Extension | Rescued a captive Derelict 18054 | -6/Extension | Rescued a captive Derelict 18054 | -6/Extension | Rescued a captive Derelict 18055 | -6/Extension | Lost 3 allies 18056 | -6/Extension | Rescued a captive Derelict 18074 | -6/Extension | Rescued A7 18259 | -6/Extension | Identified exit to Cetus 18302 | -6/Extension | Spotted B-75 Beast 18309 | -6/Extension | Spotted B-75 Beast 18351 | -6/Extension | Allies destroyed B-75 Beast 18373 | -6/Extension | Destroyed B-75 Beast 18386 | -6/Extension | Lost 5 allies 18388 | -6/Extension | Discovered new exit (range 15) 18420 | -6/Extension | Extracted ID and sensor layout for unrecognized location from A7's data core 18570 | -6/Extension | Disrupted transfer network 18678 | -6/Extension | Build established: Scavenger-Mutant 18742 | -6/Extension | Destroyed 14 combat bots 19215 | -6/Extension | Discovered new exit (range 10) 19252 | -6/Extension | Entered Cetus 19252 | -6/Cetus | Accompanied by 2 allies 19274 | -6/Cetus | Spotted Cetus Guard 19274 | -6/Cetus | Spotted Cetus Guard 19282 | -6/Cetus | Spotted Cetus Guard 19287 | -6/Cetus | Destroyed Cetus Guard 19288 | -6/Cetus | Spotted Cetus Guard 19290 | -6/Cetus | Core integrity fell below 50% 19316 | -6/Cetus | Destroyed Cetus Guard 19318 | -6/Cetus | Destroyed Cetus Guard 19318 | -6/Cetus | Destroyed Cetus Guard 19347 | -6/Cetus | Lost 10 parts (3n4u3w) 19573 | -6/Cetus | Discovered new exit (range 15) 19607 | -6/Cetus | Identified exit to Archives 19621 | -6/Cetus | Entered Archives 20088 | -6/Archives | Unable to access archive contents 20113 | -6/Archives | Unable to access archive contents 20113 | -6/Archives | Unable to access archive contents 20123 | -6/Archives | Discovered new exit (range 13) 20150 | -6/Archives | Identified exit to Hub_04(d) 20514 | -6/Archives | Discovered new exit (range 14) 20543 | -6/Archives | Identified exit to Factory 20704 | -6/Archives | Discovered exit to Hub_04(d) (range 16) 21111 | -6/Archives | Entered Hub_04(d) 21356 | -6/Hub_04(d) | Network Hub disabled 21394 | -6/Hub_04(d) | Core integrity fell below 20% 21406 | -6/Hub_04(d) | Entered Factory 21406 | -5/Factory | Evolved 2 slots: Propulsion x1, Utility x1 21465 | -5/Factory | Identified exit to Factory 21491 | -5/Factory | Identified exit to DSF 21520 | -5/Factory | Entered DSF 21537 | -5/DSF | Additional patrols routed to DSF 21545 | -5/DSF | Discovered new exit (range 15) 21578 | -5/DSF | System corruption reached 10% 21580 | -5/DSF | Identified exit to Garrison 21580 | -5/DSF | Entered Garrison 21609 | -5/Garrison | Spotted B-75 Beast 21614 | -5/Garrison | Triggered checkpoint 21616 | -5/Garrison | Core integrity fell below 50% 21635 | -5/Garrison | Lost 19 parts (3p7n8u1w) 21640 | -5/Garrison | Discovered exit to Factory (range 11) 21646 | -5/Garrison | Attempted to access garrison exit controls, blocked by remote lockdown 21680 | -5/Garrison | Triggered checkpoint 21684 | -5/Garrison | Core integrity fell below 20% 21693 | -5/Garrison | Discovered exit to Factory (range 11) 21698 | -5/Garrison | Entered Factory 21698 | -4/Factory | Evolved 2 slots: Power x1, Propulsion x1 21826 | -4/Factory | Build established: Mutant 22036 | -4/Factory | Identified exit to Upper Caves 22036 | -4/Factory | Identified exit to Armory 22237 | -4/Factory | Build established: Hacker-Mutant 22550 | -4/Factory | Discovered new exit (range 15) 22558 | -4/Factory | Identified exit to Research 22559 | -4/Factory | Entered Research 22559 | -3/Research | Evolved 2 slots: Propulsion x1, Utility x1 22588 | -3/Research | Lost 6 parts (4n2u) 23395 | -3/Research | Spotted B-86 Titan 23534 | -3/Research | Lost 13 parts (1p5n6u1w) 23585 | -3/Research | Lost 6 parts (2p4n) 23602 | -3/Research | Core integrity fell below 50% 23642 | -3/Research | Spotted B-86 Titan 23654 | -3/Research | Core integrity fell below 20% 23658 | -3/Research | Destroyed by G-67 Veteran with Field Laser Last Messages --------------- 23583_ Dropped Adv. Heat Sink. 23591_ Acquired 70 matter. 23593_ Gyrokinetic Inverter destroyed. 23598_ Penetrated by Slug. 23598_ Slug penetrates Door. 23601_ Penetrated by Slug. 23605_ Gyrokinetic Inverter destroyed. 23609_ Acquired Imp. Linear Gravjet. 23635_ System corrupted: Matter fused (-5). 23643_ Imp. Linear Gravjet destroyed. 23646_ Penetrated by Slug. 23646_ Slug penetrates A-15 Conveyor. 23650_ Slug penetrates Wall. 23650_ W-44 Eye sends out distress signal. 23652_ Q-thruster destroyed. 23653_ Penetrated by Slug. 23653_ Slug penetrates Wall. 23655_ Hacking Suite destroyed. 23655_ Slug penetrates Wall. 23656_ Penetrated by Slug. Map ----- +----------------------------------------------------+ | ?????????????????????????????????????????????????? | | ?????????????????????????????????????????????????? | | ?????????????????????????????????????????????????? | | ?????????????????????????????????????????????????? | | ?????????????????????????????????????????????????? | | ?????????????????????????????????????????????????? | | ?????????????????????????????????????????????????? | | ?????????????????????????????????????????????????? | | ?????????????????????????????????????????????????? | | ????? ?????????????????????????????????????????? | | ???? ?????????????????? ?????????????????????? | | ??? #?????????????????? ???????????????????? | | ??? #?????????????????? #???????????????????? | | ?? #?????????????????? #???????????????????? | | ## #?????????????????# #???????????????????? | | ####?????????????? h#???????????????????? | | ?????????Y???? #???????????????????? | | ?????????????? h#???????????????????? | | #????????????????? #???????????????????? | | ##+"###?????????????????# #???????????????????? | | ????????????????????????# #???????????????????? | | ????????????????????????#k #???????????????????? | | ????????????????????????# +???????????????????? | | ????????????????????????# #???????????????????? | | ????????????????????????# #???????????????????? | | ????????????????????????#@ k#???????????????????? | | ????????????????????????# #???????????????????? | | ###########?????????????# #???????????????????? | | #?????????????# #???????????????????? | | #?????????????# #???????????????????? | | #?????????????# #???????????????????? | | ##########????# #???????????????????? | | ###### # #????# #???????????????????? | | ?????# # #????#s #???????????????????? | | ###### #""" ######s ss####????w???????????? | | #""" = # ss g s ?????????? | | ! #""" / ps ksg ????????? | | #""" g# h A ?????????? | | !!! #""" # h ?????????? | | !!! # p # """ """ #??????????? | | !!! # # p """ """ #??????????? | | ##"###/### """ """ #??????????? | | % w ? ???????????? | | ?? ???????????? | | ????????????????? | | """ """ ???????????????? | | """ """ #""###+##########???????????????? | | """ """ #""?????????????????????????????? | | ? #?????????????????????????????? | | ? #?????????????????????????????? | +----------------------------------------------------+ Best States ------------- Heat Dissipation 110 Energy Generation 39 Energy Capacity 410 Matter Stores 300 Matter Capacity 300 Sight Range 22 Terrain Scan Density 10 EM Shielding 2 Corruption Block 20 Armor Coverage 1200 Resistance: KI 20 Utility Shielding 66 Weapon Cycling 15 Phase Shifting 5 Evasion (%) 68 Targeting Accuracy 11 Core Analysis 9 Armor Integrity Analysis 30 Recoil Reduction 4 Energy Filtering 30 Offensive Hacking 36 Defensive Hacking 12 Item Schematics ----------------- Enh. Autogun | -8/Materials | Scanalyzed Enh. Gauss Cannon | -7/Factory | Hacked Adv. Matter Compressor | -4/Factory | Scanalyzed Robot Schematics ------------------ None Fabricated ------------ Nothing Alien Tech Used ----------------- None Achievements -------------- Oh No You Don't! Challenges ------------ None Game ------ Seed MeleeThiefTerrabomb Manual? 0 Play Time 03:30:09 Cumulative 67.9 hours Start 2024.04.18 @ 02:23:37 End 2024.04.20 @ 01:31:29 Sessions 7 Manual Loads 0 Difficulty Rogue Special Mode None Game No. 62 Rogue 62 Adventurer 0 Explorer 0 Win Type - Total 6 Types 5/0/1/0/0/0/0/0/0 Lore% 47 Gallery% 38 Achievement% 41 Wizard Run 0 Options --------- Layout 0 ASCII 0 Keyboard 1 Movement Vi Keybinds 0 Fullscreen 2 Font 16/SmallcapsGlow Map View 64x51 Zoom Use 0% Tactical HUD 1 Map Filters NONE Filters NONE Steam X RUN: cee00bd6-466d-4499-8d83-084c7c7bb5d7